bitfinex-derivatives/quotes_ETHF0:USTF0_20260303
["timestamp","ask_amount","ask_price","bid_price","bid_amount"]
[1772562406447,3.61848158,1989.2,1988.5,3.49360617]
[1772562407546,3.61848158,1989.2,1988.5,3.498352]
[1772562407742,10.20548158,1989.4,1988.6,3.49360617]
[1772562408054,6.587,1989.4,1988.8,3.30860078]
[1772562408750,3.04699167,1989.4,1988.9,3.30860078]
[1772562408957,6.587,1989.6,1988.9,3.30860078]
[1772562409256,9.91762952,1989.6,1988.9,3.30860078]
[1772562410153,3.33062952,1989.5,1988.9,3.30860078]
[1772562410554,3.33062952,1989.5,1988.7,3.30860078]
[1772562411157,3.33062952,1989.5,1988.6,4.06502787]
[1772562411358,3.33062952,1989.5,1988.6,7.37362865]
[1772562411555,3.33062952,1989.5,1988.6,3.30860078]
[1772562412855,3.33062952,1989.5,1988.7,3.30860078]
[1772562413057,6.587,1989.6,1988.9,3.30860078]
[1772562414553,3.33062952,1989.6,1988.9,3.30860078]
[1772562414758,6.588,1989.7,1988.9,3.30860078]
[1772562415162,9.91862952,1989.7,1988.9,3.30860078]
[1772562415359,3.33062952,1989.6,1988.9,3.30860078]
[1772562415859,3.33062952,1989.6,1988.8,3.30860078]
[1772562417560,9.91862952,1989.7,1988.8,3.30860078]
[1772562417757,3.33062952,1989.7,1988.8,3.30860078]
[1772562417957,6.588,1989.6,1988.8,3.30860078]
[1772562418159,9.91862952,1989.6,1988.8,3.30860078]
[1772562418564,3.33062952,1989.5,1988.8,3.30860078]
[1772562419861,9.91862952,1989.6,1988.8,3.30860078]
[1772562420460,6.588,1989.8,1989.0,3.30860078]
[1772562420762,6.588,1989.8,1989.1,3.30860078]
[1772562420963,3.33062952,1989.9,1989.2,3.30860078]
[1772562421663,6.588,1990.1,1989.2,3.55993078]
[1772562421664,9.91862952,1990.1,1989.2,3.55993078]
[1772562421865,9.91862952,1990.1,1989.3,3.30860078]
[1772562422059,3.33062952,1990.0,1989.3,3.30860078]
[1772562423058,0.00429797,1990.3,1989.5,3.30860078]
[1772562423257,7.89944866,1991.0,1989.7,3.30860078]
[1772562423258,3.33062952,1990.6,1989.7,3.30860078]
[1772562423565,3.33062952,1990.6,1989.8,3.30860078]
[1772562424260,3.33613011,1990.6,1989.8,3.30860078]
[1772562424465,0.00550059,1990.6,1989.8,7.37362865]
[1772562424660,0.00550059,1990.6,1989.9,3.30860078]
[1772562424861,0.00550059,1990.6,1989.9,3.31512516]
[1772562425059,3.33062952,1990.5,1989.9,0.00652438]
[1772562425262,3.33062952,1990.5,1989.9,3.31512516]
[1772562426171,3.33062952,1990.5,1989.9,0.00652438]
[1772562426466,3.33062952,1990.5,1989.5,3.30860078]
[1772562426964,3.33062952,1990.2,1989.3,3.30860078]
[1772562427267,3.33062952,1990.0,1989.3,3.31262017]
[1772562427469,3.33062952,1990.2,1989.4,3.30860078]
[1772562432071,3.33062952,1990.2,1989.3,3.31262017]
[1772562432270,3.33062952,1990.2,1989.3,0.00401939]
[1772562434567,3.33062952,1989.9,1988.7,7.37362865]
[1772562434766,3.33062952,1989.7,1988.7,3.30860078]
[1772562435574,3.33062952,1989.7,1988.7,3.31216741]
[1772562438469,3.33062952,1989.7,1988.9,3.42979271]
[1772562438668,6.586,1989.8,1989.1,3.42979271]
[1772562439070,3.38947961,1990.0,1989.1,3.42979271]
[1772562439463,3.38947961,1990.0,1989.2,3.42979271]
[1772562439670,3.38947961,1990.1,1989.4,3.42979271]
[1772562440171,6.587,1990.5,1989.6,3.49221497]
[1772562440769,10.19018438,1990.5,1989.7,3.74349497]
[1772562440969,3.60318438,1990.4,1989.7,3.74349497]
[1772562441472,6.587,1990.5,1989.7,3.74349497]
[1772562441670,3.60868497,1990.6,1989.7,3.74349497]
[1772562442373,3.60868497,1990.6,1990.0,3.49221497]
[1772562444171,0.00550059,1990.6,1990.0,3.49221497]
[1772562447673,3.60318438,1991.0,1990.0,3.49221497]
[1772562447980,3.60318438,1991.3,1990.3,3.49221497]
[1772562448883,3.60904092,1991.3,1990.3,3.49755732]
[1772562449271,10.18918438,1991.2,1990.5,3.49221497]
[1772562449474,3.60318438,1991.1,1990.3,3.49755732]
[1772562450579,3.60318438,1991.1,1990.3,0.00534235]
[1772562451173,3.60318438,1991.1,1989.9,3.49221497]
[1772562451781,3.60318438,1990.8,1989.7,3.49221497]
[1772562451982,3.60318438,1990.6,1989.7,3.49221497]
[1772562452182,3.60318438,1990.6,1989.7,3.4963631]
[1772562455083,3.60318438,1990.5,1989.7,3.4963631]
[1772562455890,3.60318438,1990.4,1989.3,3.49221497]
[1772562456986,3.60318438,1990.4,1989.3,3.49746389]
[1772562457985,3.60318438,1990.4,1989.3,3.74879389]
[1772562458183,3.60318438,1990.2,1989.3,3.74879389]
[1772562460581,3.60318438,1990.2,1989.3,3.49746389]
[1772562462887,3.60318438,1990.2,1989.3,0.00524892]
[1772562466589,3.60318438,1990.0,1989.3,0.00524892]
[1772562467090,3.85443438,1990.0,1989.0,3.49221497]
[1772562467593,3.85443438,1990.0,1988.7,3.49221497]
[1772562468093,3.85443438,1990.0,1988.7,3.74808935]
[1772562468288,3.25061209,1989.8,1988.7,3.74808935]
[1772562468494,3.25444624,1989.8,1988.7,3.74808935]
[1772562469994,3.25061209,1989.6,1988.7,3.74808935]
[1772562471290,9.83761209,1989.5,1988.7,3.74808935]
[1772562471685,3.25061209,1989.4,1988.7,3.74808935]
[1772562476689,3.25061209,1989.4,1988.7,3.49668935]
[1772562479496,3.25061209,1989.4,1988.7,3.3722494]
[1772562480998,3.25061209,1989.4,1988.1,7.75723897]
[1772562480999,3.50194209,1989.4,1988.1,3.36777502]
[1772562481695,3.50194209,1989.4,1988.3,3.36777502]
[1772562482001,3.50194209,1989.4,1988.3,3.37406493]
[1772562482298,3.25061209,1989.2,1988.3,3.37406493]
[1772562482498,6.588,1989.3,1988.5,3.36777502]
[1772562482998,3.25061209,1989.2,1988.5,3.36777502]
[1772562483201,3.25061209,1989.2,1988.7,3.36777502]
[1772562485199,3.25061209,1989.4,1988.7,3.36777502]
[1772562485603,6.588,1989.3,1988.7,3.36777502]
[1772562485906,9.83861209,1989.3,1988.7,3.36777502]
[1772562487406,3.25061209,1989.3,1988.7,3.36777502]
[1772562487607,6.588,1989.2,1988.7,3.36777502]
[1772562489206,9.83861209,1989.2,1988.7,3.36777502]
[1772562489505,3.25061209,1989.1,1988.7,3.36777502]
[1772562489908,3.25061209,1989.1,1988.5,3.36777502]
[1772562492405,6.589,1989.0,1988.6,3.36777502]
[1772562492606,9.83961209,1989.1,1988.6,3.36777502]
[1772562492806,9.83961209,1989.0,1988.6,3.36777502]
[1772562493011,3.25061209,1988.9,1988.5,3.36777502]
[1772562493202,3.25061209,1988.9,1988.4,4.10824077]
[1772562493403,3.25061209,1988.9,1988.4,3.36777502]
[1772562494605,3.25061209,1988.9,1988.3,0.00628991]
[1772562494810,3.25061209,1988.9,1988.3,3.37406493]
[1772562496407,6.589,1989.0,1988.4,3.36777502]
[1772562497008,3.25061209,1988.9,1988.4,3.36777502]
[1772562497907,9.83961209,1989.0,1988.4,3.36777502]
[1772562498407,3.19624719,1988.9,1988.4,3.36777502]
[1772562498607,6.589,1989.0,1988.4,3.36777502]
[1772562499111,9.78524719,1989.0,1988.4,3.36777502]
[1772562499312,3.19624719,1988.9,1988.3,0.00628991]
[1772562500707,3.19624719,1988.9,1988.3,3.2850374]
[1772562501504,9.99512557,1988.8,1988.3,3.2850374]
[1772562501710,6.589,1988.7,1988.3,3.2850374]
[1772562502214,9.99512557,1988.7,1988.3,3.2850374]
[1772562502409,3.40612557,1988.6,1988.3,3.2850374]
[1772562503311,9.99512557,1988.7,1988.3,3.2850374]
[1772562504610,3.40612557,1988.6,1988.3,3.2850374]
[1772562504810,3.40612557,1988.6,1988.3,0.00628991]
[1772562505119,9.99512557,1988.7,1988.2,3.27874749]
[1772562506012,9.99512557,1988.7,1988.2,3.28383289]
[1772562507414,3.40612557,1988.6,1988.2,3.28383289]
[1772562507715,6.589,1988.7,1988.2,3.28383289]
[1772562507916,9.99512557,1988.7,1988.2,3.28383289]
[1772562508616,3.40612557,1988.6,1988.2,3.28383289]
[1772562510025,3.40612557,1989.2,1988.4,3.27874749]
[1772562510316,4.19056366,1989.6,1988.6,3.27874749]
[1772562510511,9.99612557,1989.6,1989.0,3.27874749]
[1772562511213,3.40612557,1989.5,1989.0,3.27874749]
[1772562511413,3.40612557,1989.7,1989.0,3.27874749]
[1772562512015,6.59383415,1989.8,1989.0,3.27874749]
[1772562512216,9.99995972,1989.8,1989.0,3.27874749]
[1772562512519,0.25121,1990.3,1989.0,3.27874749]
[1772562512520,6.59,1990.2,1989.4,3.27874749]
[1772562512913,3.40612557,1990.3,1989.6,3.27874749]
[1772562513118,6.59,1990.6,1989.8,3.27874749]
[1772562513323,3.40612557,1990.5,1989.8,3.27874749]
[1772562513513,3.41080928,1990.5,1989.8,3.28395025]
[1772562513918,3.41080928,1990.5,1989.8,0.00520276]
[1772562515819,3.66199928,1990.5,1989.3,3.27874749]
[1772562516622,3.40612557,1990.3,1989.5,3.27874749]
[1772562516826,3.40612557,1990.3,1989.5,3.28494878]
[1772562517422,3.40612557,1990.3,1989.5,0.00620129]
[1772562519121,3.40612557,1990.3,1989.5,3.28494878]
[1772562522021,6.13493257,1990.3,1989.5,0.00620129]
[1772562522226,3.40612557,1990.2,1989.2,3.27874749]
[1772562522527,3.40612557,1990.2,1989.0,3.27874749]
[1772562523122,3.40612557,1990.2,1989.0,3.28338598]
[1772562523621,3.65734557,1990.2,1989.0,3.28338598]
[1772562523827,3.40612557,1989.9,1989.0,0.00463849]
[1772562524027,3.40612557,1989.7,1989.0,0.00463849]
[1772562525023,3.40612557,1989.6,1988.6,3.27874749]
[1772562525427,3.40612557,1989.6,1988.4,3.53018749]
[1772562525825,3.40612557,1989.6,1988.4,3.27874749]
[1772562526025,3.40612557,1989.6,1988.4,3.28339607]
[1772562527329,3.40612557,1989.4,1988.4,0.00464858]
[1772562527530,3.40612557,1989.2,1988.4,0.00464858]
[1772562528125,3.40612557,1989.2,1987.7,4.11757714]
[1772562528126,2.98220939,1989.0,1988.0,3.28630282]
[1772562528429,2.98220939,1988.8,1988.0,3.28630282]
[1772562529023,6.587,1988.7,1988.0,3.28630282]
[1772562529227,9.57310461,1988.7,1988.0,3.29090395]
[1772562529421,2.98220939,1988.6,1988.0,0.00460113]
[1772562530030,2.98220939,1988.6,1988.0,3.29090395]
[1772562531333,0.00389522,1988.7,1988.0,3.29090395]
[1772562531528,2.98220939,1988.7,1988.2,3.28630282]
[1772562531728,6.588,1988.8,1988.2,3.28630282]
[1772562531927,9.57020939,1988.8,1988.2,3.28630282]
[1772562532532,9.57532294,1988.8,1988.2,3.28630282]
[1772562532937,2.98220939,1989.0,1988.4,3.28630282]
[1772562533230,9.57120939,1989.0,1988.4,3.28630282]
[1772562533635,2.98220939,1988.9,1988.4,3.28630282]
[1772562534032,2.98622909,1988.9,1988.4,3.28630282]
[1772562536732,2.98622909,1988.9,1988.1,3.28630282]
[1772562536928,2.98622909,1988.9,1988.0,3.29090395]
[1772562537927,9.57120939,1988.8,1988.0,3.29090395]
[1772562538327,2.98220939,1988.8,1988.2,3.28630282]
[1772562538539,9.57522909,1988.9,1988.2,3.28630282]
[1772562538735,2.98220939,1988.8,1988.2,3.28630282]
[1772562539036,6.5930197,1988.9,1988.2,3.28630282]
[1772562539428,6.5930197,1988.9,1988.4,3.28630282]
[1772562540633,9.57522909,1988.9,1988.4,3.28630282]
[1772562540834,6.589,1989.1,1988.4,3.28630282]
[1772562541134,2.98220939,1989.2,1988.4,3.28630282]
[1772562541437,9.57120939,1989.1,1988.4,3.28630282]
[1772562541835,2.98220939,1989.5,1988.6,3.28630282]
[1772562542037,9.57120939,1989.4,1988.6,3.28630282]
[1772562542238,2.98220939,1989.4,1988.6,3.28630282]
[1772562542938,2.98755527,1989.4,1988.6,3.28630282]
[1772562543135,0.00534588,1989.4,1988.8,3.28630282]
[1772562544138,2.98755527,1989.4,1988.8,3.28630282]
[1772562544842,2.98755527,1989.4,1988.5,3.28630282]
[1772562545941,2.98755527,1989.4,1988.3,3.28630282]
[1772562545942,3.23353939,1989.3,1988.3,3.28630282]
[1772562546135,2.98220939,1989.0,1988.1,3.28630282]
[1772562546338,2.98220939,1988.8,1988.1,3.28630282]
[1772562548633,2.98220939,1988.8,1988.0,0.00460113]
[1772562548837,2.98220939,1988.7,1987.7,3.28630282]
[1772562549844,2.98220939,1988.7,1987.7,3.29141329]
[1772562551541,6.59,1988.6,1987.9,3.28630282]
[1772562551944,2.98220939,1988.5,1988.0,3.28630282]
[1772562552946,2.98220939,1988.5,1987.9,3.28630282]
[1772562555247,2.98220939,1988.5,1988.0,3.28630282]
[1772562555549,2.98220939,1988.5,1987.7,7.43312111]
[1772562556046,2.98220939,1988.5,1987.8,3.28630282]
[1772562556442,6.59,1988.6,1988.0,3.28630282]
[1772562556643,9.57220939,1988.6,1988.0,3.28630282]
[1772562557146,2.98220939,1988.5,1988.0,3.28630282]
[1772562557643,2.98220939,1988.8,1988.0,3.28630282]
[1772562559350,2.98220939,1988.8,1988.1,2.88939667]
[1772562559949,3.17867381,1989.0,1988.3,2.88939667]
[1772562563553,3.17867381,1989.0,1988.0,4.14170782]
[1772562563753,3.17867381,1989.0,1988.1,3.13111277]
[1772562566169,3.43005381,1989.0,1988.0,3.13111277]
[1772562566369,3.14410943,1988.8,1988.0,3.13111277]
[1772562566569,3.14410943,1988.6,1988.0,3.13111277]
[1772562566769,3.14410943,1988.6,1987.8,3.38263277]
[1772562567570,3.14410943,1988.6,1987.8,3.13111277]
[1772562567970,3.14410943,1988.6,1987.7,3.13622324]
[1772562569471,3.14410943,1988.4,1987.4,3.13111277]
[1772562569666,3.14410943,1988.1,1987.1,3.13111277]
[1772562569867,3.14410943,1987.9,1987.1,3.13111277]
[1772562570062,3.14410943,1987.8,1986.8,3.13111277]
[1772562570471,3.15008497,1987.8,1986.8,3.13468467]
[1772562571972,3.47446261,1987.8,1986.8,3.13468467]
[1772562573668,3.15008497,1987.8,1986.8,3.13468467]
[1772562574277,3.15008497,1987.8,1987.0,3.13111277]
[1772562577275,3.15008497,1987.8,1986.9,3.13111277]
[1772562579277,3.15008497,1987.8,1987.1,3.13111277]
[1772562581082,3.14410943,1987.6,1986.9,3.13111277]
[1772562581873,3.14410943,1987.6,1986.8,0.0035719]
[1772562582280,3.14410943,1987.6,1986.8,3.13468467]
[1772562585579,0.00597554,1987.8,1987.0,3.13111277]
[1772562585776,3.15008497,1987.8,1987.0,3.13111277]
[1772562586678,3.15008497,1987.8,1987.1,0.25161]
[1772562586885,3.14410943,1988.3,1987.2,3.13111277]
[1772562587579,3.14410943,1988.3,1987.4,3.13111277]
[1772562587776,3.14410943,1988.3,1987.6,2.90132607]
[1772562587980,3.14956697,1988.3,1987.6,2.90132607]
[1772562588182,0.00545754,1988.3,1987.6,2.90132607]
[1772562588378,0.00545754,1988.3,1987.8,2.90132607]
[1772562588883,2.86422713,1988.8,1987.8,2.90132607]
[1772562589785,2.86422713,1988.6,1987.8,2.90132607]
[1772562589986,2.86422713,1988.6,1987.3,2.90132607]
[1772562590186,2.86422713,1988.4,1987.3,2.90132607]
[1772562590384,2.86422713,1988.2,1987.3,2.90132607]
[1772562596387,3.11570713,1988.2,1987.1,2.90132607]
[1772562597289,2.86422713,1988.1,1986.9,2.90132607]
[1772562598087,7.07154627,1988.1,1986.9,2.90132607]
[1772562598287,0.25148,1988.2,1986.4,2.90132607]
[1772562598288,2.86422713,1987.0,1986.4,2.90132607]
[1772562598492,2.86422713,1986.8,1985.7,2.90132607]
[1772562598788,2.86422713,1986.8,1985.8,2.90132607]
[1772562599190,2.87027382,1986.8,1985.9,2.90132607]
[1772562599689,2.87027382,1986.8,1986.1,2.90132607]
[1772562600893,9.01561081,1986.7,1986.3,2.90132607]
[1772562601085,2.86422713,1986.7,1985.9,2.90132607]
[1772562601288,0.00604669,1986.8,1985.9,2.90132607]
[1772562601486,0.00604669,1986.8,1986.3,2.90132607]
[1772562601785,2.87027382,1986.8,1986.3,2.90132607]
[1772562601983,2.87027382,1986.8,1986.3,5.41732607]
[1772562602588,2.87027382,1986.8,1986.4,2.90132607]
[1772562602892,2.87027382,1986.8,1985.9,2.90132607]
[1772562603087,2.86422713,1986.6,1985.5,2.90132607]
[1772562603295,2.86422713,1986.4,1985.5,2.90132607]
[1772562603890,6.595,1986.5,1985.2,0.25184]
[1772562603891,6.595,1986.5,1985.8,2.90132607]
[1772562604193,6.595,1986.5,1985.8,2.9075094]
[1772562604493,9.45922713,1986.5,1986.0,2.90132607]
[1772562604694,2.86422713,1986.7,1986.0,2.90132607]
[1772562604892,6.60104669,1986.8,1986.1,2.90132607]
[1772562605189,2.86422713,1986.7,1986.1,2.90132607]
[1772562605493,2.86422713,1986.7,1986.1,5.41732607]
[1772562605691,2.86422713,1986.7,1986.1,2.90132607]
[1772562605892,2.86422713,1986.7,1986.2,2.516]
[1772562606188,2.86422713,1986.7,1986.2,5.41732607]
[1772562606385,2.86422713,1986.7,1985.8,0.00618333]
[1772562606787,9.33637145,1986.8,1985.8,0.00618333]
[1772562606788,2.86422713,1986.5,1985.8,0.00618333]
[1772562607988,3.11592713,1986.5,1985.4,2.90132607]
[1772562608384,2.86422713,1986.3,1985.4,2.90132607]
[1772562608587,2.86422713,1986.1,1985.4,2.90132607]
[1772562608989,6.596,1986.2,1985.4,2.90493817]
[1772562609385,9.46022713,1986.5,1985.4,3.15674817]
[1772562609592,6.596,1986.5,1985.4,3.15674817]
[1772562609986,9.46022713,1986.5,1985.4,3.15674817]
[1772562610592,2.86422713,1986.4,1985.4,3.15674817]
[1772562610796,2.87027382,1986.8,1985.9,2.90132607]
[1772562613597,2.87027382,1986.8,1985.5,2.90132607]
[1772562613598,2.86422713,1986.6,1985.5,2.90132607]
[1772562615793,2.86422713,1986.4,1985.5,2.90132607]
[1772562616094,2.86422713,1986.2,1985.5,2.90132607]
[1772562617797,2.86422713,1986.2,1985.4,2.90493817]
[1772562618199,9.56496584,1986.4,1985.4,2.90493817]
[1772562618991,9.56496584,1986.4,1985.6,3.02518663]
[1772562619197,2.96896584,1986.3,1985.6,3.02518663]
[1772562619494,2.96896584,1986.7,1985.8,3.02518663]
[1772562619799,2.97501253,1986.8,1985.8,3.02518663]
[1772562620899,2.97501253,1986.8,1985.5,6.19465]
[1772562620900,2.97501253,1986.8,1986.0,3.02413007]
[1772562623097,3.1299296,1987.2,1986.4,3.02413007]
[1772562623500,3.1299296,1987.2,1986.3,3.27584007]
[1772562624202,0.00439603,1987.2,1986.3,3.27584007]
[1772562625199,0.00439603,1987.2,1986.8,3.02413007]
[1772562625403,0.00439603,1987.2,1986.8,3.02863414]
[1772562626203,3.13432563,1987.2,1986.8,3.02863414]
[1772562627101,3.13432563,1987.2,1986.8,0.00450407]
[1772562628001,3.13432563,1987.2,1986.8,3.02863414]
[1772562628400,3.1299296,1987.6,1986.8,3.02863414]
[1772562628597,6.4532819,1987.5,1986.8,3.02863414]
[1772562628799,3.1299296,1987.4,1986.8,3.02863414]
[1772562629196,3.1299296,1987.4,1986.8,0.00450407]
[1772562629402,3.1299296,1987.2,1986.4,3.02413007]
[1772562629705,3.1299296,1987.0,1986.4,3.02413007]
[1772562630601,3.1299296,1987.3,1986.4,3.02874778]
[1772562630800,4.21294988,1987.4,1986.4,3.02874778]
[1772562630801,0.00563074,1987.4,1986.8,3.02413007]
[1772562631197,3.13556034,1987.4,1986.8,3.02413007]
[1772562631804,3.13556034,1987.4,1986.6,3.02413007]
[1772562632005,3.1299296,1987.2,1986.6,3.02413007]
[1772562632205,9.57902834,1987.1,1986.4,0.00461771]
[1772562632401,3.1299296,1986.9,1986.0,3.02413007]
[1772562632600,3.1299296,1987.0,1986.0,3.02413007]
[1772562632801,3.1299296,1986.8,1986.0,3.02413007]
[1772562633602,3.1299296,1986.8,1986.0,3.0302987]
[1772562633802,3.1299296,1987.0,1986.2,3.02413007]
[1772562634009,3.1299296,1987.1,1986.2,3.02413007]
[1772562634314,6.595,1987.2,1986.4,3.02413007]
[1772562634733,6.44934069,1987.1,1986.4,3.02413007]
[1772562635004,9.7249296,1987.2,1986.4,3.02413007]
[1772562635711,3.1299296,1987.1,1986.4,3.02413007]
[1772562636307,6.595,1987.2,1986.1,3.02413007]
[1772562636308,3.1299296,1986.9,1986.1,3.02413007]
[1772562639212,3.1299296,1987.1,1986.3,3.02413007]
[1772562639413,6.45395736,1987.0,1986.3,3.02413007]
[1772562639614,6.595,1987.2,1986.3,3.02413007]
[1772562639813,6.595,1987.2,1986.5,3.02413007]
[1772562640311,3.1299296,1987.3,1986.5,3.02413007]
[1772562640506,6.45340351,1987.2,1986.5,3.02413007]
[1772562641312,9.58333311,1987.2,1986.5,3.02413007]
[1772562641517,3.1299296,1987.2,1986.5,3.02413007]
[1772562642315,0.00563074,1987.4,1986.7,3.02413007]
[1772562642819,3.1299296,1987.8,1987.1,1.76039868]
[1772562643917,3.1299296,1987.6,1986.8,2.01592181]
[1772562645915,3.1299296,1987.6,1986.6,2.16074558]
[1772562646112,6.595,1987.7,1986.2,1.90907558]
[1772562646113,3.1299296,1987.4,1986.2,1.90907558]
[1772562646415,3.1299296,1987.4,1986.4,1.90907558]
[1772562646815,3.1299296,1987.4,1986.6,1.90156546]
[1772562647409,3.1299296,1987.6,1986.8,1.90049626]
[1772562648015,3.1299296,1987.6,1986.7,2.14896748]
[1772562648620,3.00626303,1987.4,1986.7,1.89730748]
[1772562648818,3.00626303,1987.4,1986.2,1.88888304]
[1772562651622,3.00626303,1987.4,1986.4,1.92464018]
[1772562652924,3.00626303,1987.3,1986.4,1.92464018]
[1772562659027,3.00626303,1987.3,1986.6,1.86218237]
[1772562662339,3.00626303,1987.1,1986.1,1.84038881]
[1772562662630,3.00626303,1987.1,1986.0,0.25790863]
[1772562662631,3.00626303,1986.9,1986.0,0.00616863]
[1772562662834,3.00626303,1986.7,1986.0,0.00616863]
[1772562663235,3.00626303,1986.5,1986.0,0.00616863]
[1772562663439,3.00626303,1986.5,1986.0,1.83362681]
[1772562663734,3.00626303,1986.5,1986.0,0.00616863]
[1772562664726,3.00626303,1986.9,1986.0,1.82674057]
[1772562664930,3.00626303,1987.1,1986.4,1.81271518]
[1772562666338,3.00626303,1987.4,1986.6,1.80549907]
[1772562666533,3.00626303,1987.2,1986.6,1.80549907]
[1772562666839,3.00626303,1987.2,1986.5,2.05718907]
[1772562667136,3.00626303,1987.2,1986.1,1.80221098]
[1772562667336,3.00626303,1987.2,1986.0,0.25790863]
[1772562667337,3.00626303,1987.0,1986.0,2.06011961]
[1772562670031,3.00626303,1987.0,1986.3,0.2517]
[1772562670238,3.00626303,1987.3,1986.4,1.7963971]
[1772562670434,3.00626303,1987.1,1986.4,1.7963971]
[1772562670937,3.00626303,1987.1,1986.5,2.04498947]
[1772562671340,3.00626303,1987.1,1986.5,0.25169]
[1772562673341,3.00626303,1986.9,1986.0,0.00616863]
[1772562673838,3.00626303,1986.9,1986.0,2.02679062]
[1772562677241,3.00626303,1986.9,1986.5,1.99413392]
[1772562677642,3.00626303,1986.9,1986.5,0.25169]
[1772562678237,3.00626303,1986.9,1986.2,1.73257703]
[1772562678437,3.00626303,1986.9,1986.3,1.73257703]
[1772562679944,3.00626303,1986.9,1986.1,1.97552861]
[1772562680241,3.00626303,1986.9,1986.0,0.00616863]
[1772562680546,2.95380258,1986.7,1986.0,1.72996724]
[1772562682045,2.95380258,1987.2,1986.6,1.72143948]
[1772562682341,2.95380258,1987.2,1986.7,0.25166]
[1772562682651,2.95380258,1987.2,1986.7,1.97309948]
[1772562683246,2.95380258,1987.2,1986.5,1.74062829]
[1772562683749,2.95380258,1987.2,1986.3,1.98511043]
[1772562684042,2.95380258,1987.2,1986.3,1.98597089]
[1772562685945,4.21389725,1987.6,1986.7,0.25166]
[1772562686144,2.57676003,1987.5,1987.0,2.09723223]
[1772562686344,2.57676003,1987.5,1986.6,2.09723223]
[1772562688846,2.57676003,1987.5,1986.5,0.25168]
[1772562689047,2.57676003,1987.5,1986.5,2.33320071]
[1772562689748,2.95380258,1987.7,1986.9,2.08152071]
[1772562690149,2.95380258,1987.7,1987.1,2.07525795]
[1772562690649,2.95380258,1987.7,1987.0,0.25162]
[1772562690847,2.95380258,1987.7,1987.0,2.31976966]
[1772562691150,2.95380258,1987.9,1987.4,2.34690829]
[1772562691449,2.95380258,1988.4,1987.4,2.34690829]
[1772562692251,0.0057465,1988.4,1987.8,2.52516186]
[1772562692448,2.95380258,1988.6,1987.8,2.52516186]
[1772562692847,2.95380258,1988.9,1988.1,2.27991482]
[1772562693450,2.95795609,1988.9,1988.1,2.27991482]
[1772562693847,2.95795609,1988.9,1988.0,0.2515]
[1772562694250,2.95795609,1988.9,1988.0,2.33890677]
[1772562694451,7.16769983,1989.4,1988.2,2.88486597]
[1772562694646,13.24100244,1990.3,1988.7,2.88486597]
[1772562694647,2.95380258,1989.3,1988.7,2.88486597]
[1772562695554,0.00360217,1989.3,1988.7,2.88486597]
[1772562695957,2.95740475,1989.3,1988.2,2.88486597]
[1772562697054,2.95380258,1989.2,1988.2,2.88486597]
[1772562699650,0.00360217,1989.3,1988.2,2.88486597]
[1772562699651,0.00360217,1989.3,1988.4,2.88486597]
[1772562699856,0.00360217,1989.3,1988.6,2.88486597]
[1772562700057,2.95380258,1989.6,1988.6,2.88486597]
[1772562700458,2.95380258,1989.6,1988.7,2.88486597]
[1772562700860,2.95380258,1989.6,1988.7,3.13627597]
[1772562701051,2.95861823,1989.6,1988.7,3.13627597]
[1772562702957,2.95861823,1989.6,1988.5,2.88486597]
[1772562703861,2.95861823,1989.6,1988.6,3.13628597]
[1772562705665,2.95861823,1989.6,1988.8,3.13626597]
[1772562705966,0.00481565,1989.6,1988.8,3.1404646]
[1772562707660,0.00481565,1989.6,1989.3,2.88486597]
[1772562707861,9.63450673,1989.9,1989.3,2.88486597]
[1772562708056,3.04250673,1989.8,1989.2,0.25134]
[1772562708562,3.04250673,1989.8,1988.8,0.25558863]
[1772562708761,3.04611136,1989.8,1988.8,0.25558863]
[1772562708958,3.04611136,1989.8,1988.8,3.1137575]
[1772562712067,3.04611136,1989.8,1988.8,0.25558863]
[1772562712668,3.04611136,1989.8,1988.8,3.1137575]
[1772562715066,3.04611136,1989.8,1988.8,0.00419863]
[1772562716069,3.04611136,1989.8,1988.8,2.8623675]
[1772562716364,3.04250673,1989.6,1988.8,0.00419863]
[1772562718462,3.04250673,1989.4,1988.3,2.85816887]
[1772562718665,3.04250673,1989.2,1988.3,2.85816887]
[1772562719363,3.04250673,1989.2,1988.3,2.86385803]
[1772562719770,3.04250673,1989.5,1988.5,2.85816887]
[1772562720170,3.04250673,1989.5,1988.7,2.85816887]
[1772562720572,3.04250673,1989.5,1988.6,0.25142]
[1772562720976,3.04250673,1989.5,1988.6,3.10958887]
[1772562721275,3.04250673,1989.3,1988.6,3.10958887]
[1772562721667,3.04250673,1989.6,1988.6,3.10958887]
[1772562722276,5.92120748,1989.5,1988.6,3.10958887]
[1772562722579,9.63050673,1989.7,1989.2,2.85816887]
[1772562722776,3.04611136,1989.8,1989.4,2.85816887]
[1772562723076,0.00360463,1989.8,1989.4,2.85816887]
[1772562723481,3.04611136,1989.8,1989.2,2.85816887]
[1772562725476,0.00360463,1989.8,1989.2,2.85816887]
[1772562725976,3.04611136,1989.8,1989.2,2.85816887]
[1772562726178,0.00360463,1989.8,1989.4,2.85816887]
[1772562726370,7.25640398,1990.3,1989.4,2.85816887]
[1772562726670,3.04250673,1990.2,1989.4,2.85816887]
[1772562727579,3.04737162,1990.2,1989.4,2.85816887]
[1772562728083,3.04737162,1990.2,1989.3,0.25133]
[1772562728385,3.04250673,1990.0,1988.9,2.85816887]
[1772562732184,3.04250673,1990.0,1989.1,2.85816887]
[1772562732478,3.04250673,1990.0,1989.3,2.85816887]
[1772562733072,3.04250673,1989.8,1988.9,2.85816887]
[1772562733874,3.04250673,1989.6,1988.7,3.10956887]
[1772562734180,3.04250673,1989.5,1988.7,3.10956887]
[1772562738186,2.91010637,1989.3,1988.4,2.76095382]
[1772562739582,2.91010637,1989.3,1988.3,0.00568916]
[1772562739583,2.91010637,1989.3,1988.6,2.76095382]
[1772562739986,2.91010637,1989.3,1988.4,2.69019998]
[1772562740484,2.90424719,1989.1,1988.3,0.00568916]
[1772562740684,3.15563719,1988.9,1988.0,2.69019998]
[1772562740883,2.90424719,1988.7,1988.0,2.69019998]
[1772562741090,2.90424719,1988.7,1987.7,2.69019998]
[1772562741589,2.91009897,1988.7,1987.7,2.69573243]
[1772562743791,2.91009897,1988.7,1987.9,2.69019998]
[1772562743988,0.00585178,1988.7,1988.3,2.69019998]
[1772562744188,2.90424719,1988.9,1988.3,2.69019998]
[1772562744791,2.90424719,1988.9,1988.2,0.25147]
[1772562744792,2.90424719,1989.5,1988.5,2.69019998]
[1772562745189,2.90891181,1989.5,1988.5,2.69019998]
[1772562746993,2.90891181,1989.5,1988.7,2.69019998]
[1772562747393,2.90891181,1989.5,1988.6,0.25142]
[1772562748087,2.90891181,1989.5,1988.6,2.94161998]
[1772562748898,2.90891181,1989.5,1988.3,2.69019998]
[1772562750495,2.90891181,1989.5,1988.5,2.69019998]
[1772562750689,2.90891181,1989.5,1988.8,2.94159998]
[1772562751090,6.588,1989.6,1988.8,2.94159998]
[1772562752201,0.00527177,1989.6,1988.8,2.94159998]
[1772562753393,6.589,1990.0,1988.8,2.94159998]
[1772562753394,6.589,1990.0,1989.3,2.69019998]